fUSD/lending_fUSD_20241208
["ID","MTS","AMOUNT","RATE_DAILY","PERIOD"]
[344639354,1733652664377,608.71796269,0.0001496,2]
[344639355,1733652664636,608.71796269,0.0001499,2]
[344639356,1733652664958,608.71796269,0.0001498,2]
[344639357,1733652665500,608.71796269,0.00014998,2]
[344639358,1733652665552,608.71796269,0.00014993,2]
[344639359,1733652682611,529.71050731,0.0001497,2]
[344639360,1733652682773,529.71050731,0.00014979,2]
[344639361,1733652683051,529.71050731,0.00014959,2]
[344639362,1733652683329,529.71050731,0.00014976,2]
[344639363,1733652683637,529.71050731,0.0001496,2]
[344639364,1733652683950,529.71050731,0.00014972,2]
[344639365,1733652726055,456.53847202,0.00014969,2]
[344639366,1733652726391,456.53847202,0.00014956,2]
[344639367,1733652726717,456.53847202,0.00014981,2]
[344639368,1733652727105,456.53847202,0.0001496,2]
[344639369,1733652727457,456.53847202,0.00014972,2]
[344639370,1733652727768,456.53847202,0.00014978,2]
[344639371,1733652734164,397.28288048,0.0001497,2]
[344639372,1733652734462,397.28288048,0.00014995,2]
[344639373,1733652735060,397.28288048,0.00014984,2]
[344639374,1733652735161,397.28288048,0.00014969,2]
[344639375,1733652735475,397.28288048,0.00014988,2]
[344639376,1733652735766,397.28288048,0.00014989,2]
[344639377,1733652785671,342.40385401,0.00014972,2]
[344639378,1733652786019,342.40385401,0.00014979,2]
[344639379,1733652786353,342.40385401,0.00014956,2]
[344639380,1733652786657,342.40385401,0.00014996,2]
[344639381,1733652786988,342.40385401,0.0001497,2]
[344639382,1733652787309,342.40385401,0.00014982,2]
[344639383,1733652793600,297.96216036,0.00014982,2]
[344639385,1733652793898,297.96216036,0.00014975,2]
[344639387,1733652794184,297.96216036,0.00014957,2]
[344639389,1733652794461,297.96216036,0.00014967,2]
[344639392,1733652794748,297.96216036,0.00014997,2]
[344639393,1733652795033,297.96216036,0.00014974,2]
[344639394,1733652844663,256.80289051,0.00014964,2]
[344639395,1733652845021,256.80289051,0.00014959,2]
[344639396,1733652845379,256.80289051,0.0001497,2]
[344639397,1733652845690,256.80289051,0.00014966,2]
[344639398,1733652846023,256.80289051,0.00014989,2]
[344639399,1733652846341,256.80289051,0.00014997,2]
[344639400,1733652852631,223.47162027,0.00014976,2]
[344639401,1733652852938,223.47162027,0.00014957,2]
[344639402,1733652853231,223.47162027,0.00014962,2]
[344639403,1733652853523,223.47162027,0.00014971,2]
[344639404,1733652853796,223.47162027,0.00015,2]
[344639405,1733652854070,223.47162027,0.00014975,2]
[344639406,1733652906081,200.0,0.00014977,2]
[344639407,1733652906362,200.0,0.00014964,2]
[344639408,1733652906648,200.0,0.00014969,2]
[344639409,1733652906996,200.0,0.00014988,2]
[344639410,1733652907357,200.0,0.00014976,2]
[344639411,1733652907648,200.0,0.00014984,2]
[344639412,1733652913915,200.0,0.00014963,2]
[344639413,1733652914416,200.0,0.00014956,2]
[344639414,1733652914502,200.0,0.00014995,2]
[344639415,1733652915038,200.0,0.00014983,2]
[344639416,1733652915122,200.0,0.00014982,2]
[344639417,1733652915435,200.0,0.00014963,2]
[344639418,1733652966578,200.0,0.00014966,2]
[344639419,1733652966879,195.00352798,0.00014971,2]
[344639420,1733652966915,4.99647202,0.00014971,2]
[344639421,1733652967165,200.0,0.0001498,2]
[344639422,1733652967622,200.0,0.00014981,2]
[344639423,1733652967921,200.0,0.00014972,2]
[344639424,1733652968252,200.0,0.00014984,2]
[344639425,1733652974532,200.0,0.00014969,2]
[344639426,1733652974837,200.0,0.00014985,2]
[344639427,1733652975119,200.0,0.00014987,2]
[344639428,1733652975416,200.0,0.00014972,2]
[344639429,1733652975712,200.0,0.00014963,2]
[344639430,1733652976001,200.0,0.00014979,2]
[344639431,1733653024376,200.0,0.00014967,2]
[344639432,1733653024869,200.0,0.00014962,2]
[344639433,1733653025187,200.0,0.00014978,2]
[344639434,1733653025473,200.0,0.0001497,2]
[344639435,1733653025755,200.0,0.00014958,2]
[344639436,1733653026050,200.0,0.00014985,2]
[344639437,1733653032366,200.0,0.00014968,2]
[344639438,1733653032669,200.0,0.00014976,2]
[344639439,1733653032948,200.0,0.00014996,2]
[344639440,1733653033236,200.0,0.0001496,2]
[344639441,1733653033583,200.0,0.00014977,2]
[344639442,1733653033871,200.0,0.00014998,2]
[344639443,1733653085885,200.0,0.00014969,2]
[344639444,1733653086270,200.0,0.00014969,2]
[344639445,1733653086622,200.0,0.00014962,2]
[344639446,1733653086930,200.0,0.00014978,2]
[344639447,1733653087325,200.0,0.00014983,2]
[344639458,1733653263112,252.97314601,0.0001901,120]
[344639478,1733653593745,-1000.0,0.00024,120]
[344639479,1733653593770,-966.0,0.000243,120]
[344639480,1733653593793,-5000.0,0.00024384,120]
[344639481,1733653593815,-5000.0,0.00024521,120]
[344639482,1733653593840,-3034.0,0.00024658,120]
[344639483,1733653698268,200.63150469,7e-05,2]
[344639501,1733653832244,-731.7,0.00019758,2]
[344639504,1733653832255,-300.0,0.00019999,2]
[344639505,1733653832266,-810.6686874,0.0002,2]
[344639507,1733653832275,-10000.0,0.0002,7]
[344639509,1733653832285,-250.0,0.00021579,2]
[344639511,1733653832295,-930.11,0.00021579,2]
[344639513,1733653832305,-1000.0,0.00021594,2]
[344639515,1733653832314,-250.0,0.00021601,2]
[344639517,1733653832323,-420.0,0.00021777,2]
[344639519,1733653832332,-436.8,0.00021793,2]
[344639522,1733653832342,-150.0,0.00021798,2]
[344639525,1733653832351,-250.0,0.00021798,2]
[344639528,1733653832360,-205.688,0.0002185,2]
[344639530,1733653832369,-500.0,0.00021877,2]
[344639532,1733653832379,-200.0,0.000219,2]
[344639534,1733653832388,-500.0,0.000219,7]
[344639536,1733653832397,-349.59,0.00021907,30]
[344639538,1733653832406,-865.34,0.00021978,2]
[344639540,1733653832415,-1100.0,0.00022,8]
[344639542,1733653832424,-731.7,0.00022022,2]
[344639544,1733653832434,-629.0,0.00022094,2]
[344639546,1733653832443,-1700.0,0.000221,8]
[344639548,1733653832452,-1000.0,0.00022121,2]
[344639550,1733653832461,-768.05,0.000222,2]
[344639552,1733653832470,-805.71,0.000222,2]
[344639553,1733653832479,-2300.0,0.000222,8]
[344639555,1733653832489,-979.79063245,0.000223,8]
[344639558,1733653832505,-1920.20936755,0.000223,8]
[344639560,1733653832515,-166.14,0.00022332,2]
[344639562,1733653832524,-500.0,0.000224,8]
[344639564,1733653832533,-300.0,0.000225,2]
[344639566,1733653832543,-500.0,0.000225,8]
[344639567,1733653832552,-500.0,0.000226,8]
[344639568,1733653832561,-500.0,0.000227,8]
[344639569,1733653832570,-2214.99771318,0.000228,2]
[344639571,1733653832624,-2134.74678327,0.000228,2]
[344639572,1733653832635,-4938.9788378,0.000228,2]
[344639573,1733653832644,-1218.02515066,0.000228,8]
[344639574,1733653832655,-81.97484934,0.000228,8]
[344639575,1733653832664,-2514.483,0.00022877,2]
[344639576,1733653832673,-800.0,0.00022877,2]
[344639577,1733653832682,-49.75486805,0.00022877,2]
[344639579,1733653832735,-359.84513195,0.00022877,2]
[344639580,1733653832744,-1347.985,0.00022877,2]
[344639581,1733653832753,-1388.16986805,0.00022899,2]
[344639582,1733653832764,-3489.23983195,0.00022899,2]
[344639583,1733653832773,-1093.81906845,0.00022899,2]
[344639584,1733653832824,-934.46613155,0.00022899,2]
[344639585,1733653832833,-276.85166867,0.000229,2]
[344639587,1733653838244,-4393.97476802,0.000228,3]
[344639588,1733653838255,-3543.09814043,0.000228,3]
[344639592,1733653838980,-207.62611142,0.000228,3]
[344639593,1733653838991,-723.88,0.000228,3]
[344639594,1733653839011,-436.18,0.000228,3]
[344639597,1733653840342,-1518.06402134,0.000228,3]
[344639598,1733653840354,-214.17695879,0.000228,3]
[344639599,1733653840364,-101.46031467,0.000229,2]
[344639600,1733653840376,-2520.96247,0.000229,2]
[344639601,1733653840452,-490.495005,0.00022442,2]
[344639602,1733653840466,-1416.48814782,0.00022442,2]
[344639603,1733653840476,-576.42973218,0.000229,2]
[344639604,1733653840487,-5621.42871448,0.000229,2]
[344639605,1733653840497,-2202.4649,0.000229,2]
[344639606,1733653840508,-1000.0,0.000229,2]
[344639607,1733653840518,-970.48714844,0.000229,2]
[344639608,1733653840529,-166.68,0.00022956,2]
[344639609,1733653840539,-150.0,0.00022973,2]
[344639610,1733653840549,-5965.0,0.00022973,2]
[344639611,1733653840559,-215.804,0.00022973,2]
[344639612,1733653840569,-9339.635,0.00022973,2]
[344639613,1733653840578,-1166.0,0.00022973,2]
[344639614,1733653840588,-5055.68086806,0.0002299,30]
[344639616,1733653840598,-1549.8777312,0.00022993,2]
[344639618,1733653840607,-536.93,0.00022999,2]
[344639620,1733653840616,-500.0,0.00022999,2]
[344639622,1733653840626,-500.0,0.00022999,2]
[344639624,1733653840635,-217.46,0.00022999,2]
[344639625,1733653840644,-500.0,0.00022999,2]
[344639627,1733653840654,-500.0,0.00022999,2]
[344639630,1733653840663,-500.0,0.00022999,2]
[344639632,1733653840674,-500.0,0.00022999,2]
[344639634,1733653840683,-500.0,0.00022999,2]
[344639636,1733653840692,-520.76556067,0.00022999,2]
[344639638,1733653840702,-184.8166313,0.00022999,2]
[344639640,1733653840711,-500.0,0.00022999,2]
[344639641,1733653840720,-500.0,0.00022999,2]
[344639644,1733653840729,-500.0,0.00022999,2]
[344639646,1733653840739,-500.0,0.00022999,2]
[344639648,1733653840749,-500.0,0.00022999,2]
[344639650,1733653840758,-509.25897046,0.00022999,2]
[344639652,1733653840768,-570.81,0.00022999,2]
[344639653,1733653840778,-202.27255694,0.00022999,2]
[344639656,1733653840787,-500.0,0.00022999,2]
[344639658,1733653840797,-500.0,0.00022999,2]
[344639660,1733653840807,-500.0,0.00022999,2]
[344639662,1733653840816,-306.26018495,0.00022999,2]
[344639664,1733653840826,-500.0,0.00022999,2]
[344639665,1733653840835,-192.97,0.00022999,2]
[344639667,1733653840845,-500.0,0.00022999,2]
[344639670,1733653840854,-625.61,0.00022999,2]
[344639672,1733653840863,-207.54347215,0.00022999,2]
[344639674,1733653840876,-292.45652785,0.00022999,2]
[344639676,1733653840885,-200.15804516,0.00022999,2]
[344639678,1733653840894,-512.01322824,0.00022999,2]
[344639680,1733653840904,-500.0,0.00022999,2]
[344639682,1733653840913,-364.98853706,0.00022999,2]
[344639684,1733653840922,-500.0,0.00022999,2]
[344639686,1733653840931,-500.0,0.00022999,2]
[344639688,1733653840940,-500.0,0.00022999,2]
[344639689,1733653840950,-500.0,0.00022999,2]
[344639691,1733653840960,-500.0,0.00022999,2]
[344639693,1733653840969,-314.53036328,0.00022999,2]
[344639695,1733653840978,-500.0,0.00022999,2]
[344639697,1733653840988,-500.0,0.00022999,2]
[344639699,1733653840997,-520.75,0.00022999,2]
[344639701,1733653841006,-634.9,0.00022999,2]
[344639703,1733653841016,-500.0,0.00022999,2]
[344639706,1733653841030,-277.78008012,0.00022999,2]
[344639707,1733653841040,-500.0,0.00022999,2]
[344639710,1733653841050,-1002.948737,0.00022999,2]
[344639712,1733653841059,-500.0,0.00022999,2]
[344639713,1733653841069,-271.78254931,0.00022999,2]
[344639715,1733653841079,-880.0,0.00023,2]
[344639717,1733653841088,-2037.1337366,0.00023,2]
[344639719,1733653841099,-7021.26438996,0.00023,5]
[344639722,1733653841116,-1850.68651401,0.00023,5]
[344639724,1733653841128,-3257.921871,0.00023,5]
[344639726,1733653841140,-896.82497611,0.00023,5]
[344639728,1733653841152,-383.57266039,0.00023,5]
[344639731,1733653841163,-5771.00299894,0.00023,5]
[344639742,1733653843498,-506.56000002,0.000228,3]
[344639743,1733653843683,-11462.49743688,0.000228,3]
[344639744,1733653843695,-3260.89297646,0.000228,3]
[344639745,1733653843706,-1069.85782166,0.000228,3]
[344639746,1733653843718,-2645.7315848,0.000228,3]
[344639747,1733653843729,-1633.46018018,0.000228,3]
[344639748,1733653843740,-818.72658959,0.00023,5]
[344639749,1733653843749,-923.38045175,0.00023,3]
[344639750,1733653843760,-1734.21350148,0.00023,3]
[344639751,1733653843780,-13823.60397144,0.00023,3]
[344639752,1733653843875,-3618.90790994,0.00023,3]
[344639753,1733653843886,-365.932,0.00023,3]
[344639759,1733653846580,-2999.99,0.00022887,2]
[344639760,1733653846589,-127263.71498274,0.00023,3]
[344639761,1733653846601,-496.38991799,0.00023,3]
[344639762,1733653846612,-3830.50130517,0.00023,3]
[344639763,1733653846624,-23670.477799,0.00023,3]
[344639764,1733653846635,-49200.0,0.00023,3]
[344639765,1733653846647,-800.0,0.00023,3]
[344639781,1733654939474,250.0,0.00013,2]
[344639782,1733654939504,200.0,0.00013,2]
[344639795,1733655031704,-658.53,0.00019824,2]
[344639796,1733655031713,-1483.85726468,0.000211,2]
[344639864,1733655037485,-1516.14273532,0.000211,2]
[344639865,1733655037494,-150.0,0.000217,2]
[344639866,1733655037504,-250.0,0.000217,2]
[344639867,1733655037513,-300.0,0.0002171,2]
[344639868,1733655037522,-17924.58,0.00021711,2]
[344639869,1733655037532,-250.0,0.00021812,2]
[344639870,1733655037542,-469.68,0.00021812,2]
[344639871,1733655037552,-186.01808314,0.00021818,5]
[344639872,1733655037563,-150.0,0.00021836,2]
[344639873,1733655037573,-1000.0,0.00021839,2]
[344639874,1733655037582,-14.85519365,0.00021843,2]
[344639875,1733655037594,-185.14480635,0.00021843,2]
[344639876,1733655037607,-253.623,0.0002185,2]
[344639877,1733655037617,-332.11,0.00021995,30]
[344639878,1733655037626,-721.11,0.00022045,2]
[344639879,1733655037635,-658.53,0.00022088,2]
[344639880,1733655037645,-3557.55407233,0.00022542,2]
[344639881,1733655037660,-1456.98265862,0.00022542,2]
[344639882,1733655037737,-115601.46326905,0.00022542,2]
[344639883,1733655037746,-1000.0,0.00022671,2]
[344639884,1733655037756,-158.70022161,0.00022716,2]
[344639885,1733655037765,-166.68,0.0002273,2]
[344639886,1733655037774,-1827.00304763,0.00022769,2]
[344639887,1733655037783,-580.0,0.00022769,2]
[344639888,1733655037792,-158.7002216,0.00022777,2]
[344639889,1733655037802,-500.0,0.00022816,2]
[344639890,1733655037811,-158.7002216,0.00022839,2]
[344639891,1733655037820,-1285.319,0.00022842,2]
[344639892,1733655037829,-179.98417436,0.00022842,2]
[344639893,1733655037838,-2500.0,0.00022872,2]
[344639894,1733655037847,-3000.02,0.00022889,2]
[344639895,1733655037861,-150.0,0.00022898,2]
[344639896,1733655037870,-150.0,0.00022898,2]
[344639897,1733655037879,-150.0,0.00022898,2]
[344639898,1733655037888,-150.0,0.00022898,3]
[344639899,1733655037896,-150.0,0.00022898,3]
[344639900,1733655037908,-150.0,0.00022898,3]
[344639901,1733655037917,-8858.5443,0.000229,2]
[344639902,1733655037926,-173370.2820454,0.000229,5]
[344639903,1733655037935,-158.7002216,0.000229,2]
[344639904,1733655037945,-1586.0,0.000229,2]
[344639905,1733655037954,-500.0,0.00022971,2]
[344639906,1733655037962,-181727.99643519,0.00022972,2]
[344639907,1733655037972,-3449.02431401,0.00022972,2]
[344639908,1733655037982,-270816.01752403,0.00022972,2]
[344639909,1733655037991,-368.77484582,0.00022973,2]
[344639910,1733655038000,-5965.0,0.00022973,2]
[344639911,1733655038009,-150.0,0.00022973,2]
[344639912,1733655038018,-342.24276451,0.00022999,2]
[344639913,1733655038028,-500.0,0.00022999,2]
[344639914,1733655038037,-585.98,0.00022999,2]
[344639915,1733655038047,-379.86121217,0.00022999,2]
[344639916,1733655038056,-500.0,0.00022999,2]
[344639917,1733655038065,-500.0,0.00022999,2]
[344639918,1733655038074,-500.0,0.00022999,2]
[344639919,1733655038083,-500.0,0.00022999,2]
[344639920,1733655038093,-500.0,0.00022999,2]
[344639921,1733655038105,-500.0,0.00022999,2]
[344639922,1733655038114,-500.0,0.00022999,2]
[344639923,1733655038123,-500.0,0.00022999,2]
[344639924,1733655038133,-500.0,0.00022999,2]
[344639925,1733655038142,-500.0,0.00022999,2]
[344639926,1733655038152,-500.0,0.00022999,2]
[344639927,1733655038162,-500.0,0.00022999,2]
[344639928,1733655038171,-500.0,0.00022999,2]
[344639929,1733655038180,-215.82486278,0.00022999,2]
[344639930,1733655038190,-19844.9400555,0.00022999,20]
[344639931,1733655038200,-500.0,0.00022999,2]
[344639932,1733655038209,-500.0,0.00022999,2]
[344639933,1733655038218,-500.0,0.00022999,2]
[344639934,1733655038227,-499.99999998,0.00022999,2]
[344639935,1733655038236,-976.0,0.00023,2]
[344639936,1733655038245,-1527.85030245,0.00023,2]
[344639937,1733655038255,-7748419.31235596,0.00023,3]
[344639938,1733655039491,-287415.89237942,0.00023,3]
[344639939,1733655039528,-890.5813428,0.00023,3]
[344639940,1733655039540,-455576.7532384,0.00023,3]
[344639941,1733655039552,-86624.02006057,0.00023,3]
[344639942,1733655039563,-44943.79759901,0.00023,3]
[344639943,1733655039574,-216450.0,0.00023,3]
[344639944,1733655039651,-4818.864916,0.00023,3]
[344639945,1733655039662,-342.42000108,0.00023,3]
[344639946,1733655039691,-374.07477111,0.00023,3]
[344639953,1733655042955,-849.09900057,0.00023,3]
[344639954,1733655042967,-23200.0,0.00023,3]
[344639955,1733655042978,-801.96214567,0.00023,3]
[344639956,1733655042989,-5093.3893404,0.00023,3]
[344639973,1733655045386,-195.63841192,0.00022899,2]
[344639974,1733655045395,-57.91158808,0.00023,3]
[344639975,1733655045495,-368.81311813,0.00023,3]
[344639976,1733655045507,-4833.79971318,0.00023,3]
[344639977,1733655045764,-44474.77587762,0.00023,3]
[344640030,1733656231591,-592.67,0.00019914,2]
[344640031,1733656231600,-167.44618749,0.00021453,2]
[344640033,1733656231646,-132.55381251,0.00021453,2]
[344640034,1733656231655,-977.97317524,0.00021454,2]
[344640035,1733656231897,-4278.787,0.00021454,2]
[344640036,1733656231909,-3111.2,0.00021454,2]
[344640037,1733656231920,-15532.03982476,0.00021454,2]
[344640038,1733656231930,-1500.0,0.00021455,2]
[344640039,1733656231939,-250.0,0.00021474,2]
[344640040,1733656231949,-150.0,0.00021496,2]
[344640041,1733656231959,-1130.55,0.00021538,2]
[344640042,1733656231968,-315.5,0.00021629,30]
[344640043,1733656231977,-931.67,0.00021651,2]
[344640044,1733656231986,-200.0,0.00021657,2]
[344640045,1733656231995,-300.0,0.00021664,2]
[344640046,1733656232004,-250.0,0.00021666,2]
[344640047,1733656232013,-412.24,0.00021708,2]
[344640048,1733656232022,-165.17,0.00021751,2]
[344640049,1733656232031,-287.137,0.0002185,2]
[344640050,1733656232040,-200.0,0.000219,2]
[344640051,1733656232049,-900.0,0.000219,2]
[344640052,1733656232058,-150.0,0.00021987,2]
[344640053,1733656232068,-2000.0,0.00021988,2]
[344640054,1733656232076,-600.92,0.00021988,2]
[344640055,1733656232086,-12106.92,0.00021988,2]
[344640056,1733656232095,-150.99,0.00021988,2]
[344640057,1733656232104,-1506.13,0.00021988,2]
[344640058,1733656232114,-150.99,0.00021988,2]
[344640059,1733656232124,-9999.99,0.00021988,2]
[344640060,1733656232134,-299.99,0.00021993,7]
[344640061,1733656232143,-2123.55,0.00021993,2]
[344640062,1733656232152,-1974.3,0.00021993,2]
[344640063,1733656232161,-221.05,0.00021993,2]
[344640064,1733656232170,-9973.48804531,0.00022,3]
[344640065,1733656232178,-263.90176767,0.00022,5]
[344640066,1733656232188,-54744.0,0.00022,5]
[344640067,1733656232197,-1000.0,0.00022029,2]
[344640068,1733656232206,-592.67,0.00022178,2]
[344640069,1733656232215,-150.0,0.00022464,2]
[344640070,1733656232225,-150.0,0.00022464,2]
[344640071,1733656232234,-150.0,0.00022464,2]
[344640072,1733656232243,-35983.0,0.00022542,2]
[344640073,1733656232252,-1000.0,0.00022637,2]
[344640074,1733656232262,-150.0,0.000227,2]
[344640075,1733656232271,-1500.0,0.000227,2]
[344640076,1733656232280,-166.68,0.00022753,2]
[344640077,1733656232289,-1314.97,0.00022872,2]
[344640078,1733656232298,-2001.2242,0.00022898,2]
[344640079,1733656232308,-2500.0,0.000229,2]
[344640080,1733656232317,-1616.32003396,0.000229,5]
[344640081,1733656232327,-1616.32003397,0.000229,5]
[344640082,1733656232337,-1000.0,0.00022919,2]
[344640083,1733656232346,-2765.46,0.00022928,2]
[344640084,1733656232355,-10364.0,0.00022959,2]
[344640085,1733656232365,-163.55030221,0.00022973,2]
[344640086,1733656232377,-500.0,0.00022973,2]
[344640087,1733656232386,-150.0,0.00022973,2]
[344640088,1733656232395,-5957.0,0.00022973,2]
[344640089,1733656232404,-2000.0,0.0002299,2]
[344640090,1733656232414,-25336.43321159,0.00022998,2]
[344640091,1733656232423,-500.0,0.00022999,2]
[344640092,1733656232432,-465.89331689,0.00022999,2]
[344640093,1733656232441,-561.56,0.00022999,2]
[344640094,1733656232451,-443.44557526,0.00022999,2]
[344640095,1733656232460,-1200.0,0.00022999,2]
[344640096,1733656232469,-500.0,0.00022999,2]
[344640097,1733656232478,-500.0,0.00022999,2]
[344640098,1733656232487,-500.0,0.00022999,2]
[344640099,1733656232496,-500.28557721,0.00022999,2]
[344640100,1733656232505,-500.0,0.00022999,2]
[344640101,1733656232514,-500.0,0.00022999,2]
[344640102,1733656232523,-500.0,0.00022999,2]
[344640103,1733656232533,-210.18,0.00022999,2]
[344640104,1733656232543,-500.0,0.00022999,2]
[344640105,1733656232551,-500.0,0.00022999,2]
[344640106,1733656232560,-500.0,0.00022999,2]
[344640107,1733656232569,-500.0,0.00022999,2]
[344640108,1733656232579,-500.0,0.00022999,2]
[344640109,1733656232588,-500.0,0.00022999,2]
[344640110,1733656232597,-500.0,0.00022999,2]
[344640111,1733656232607,-500.0,0.00022999,2]
[344640112,1733656232617,-500.0,0.00022999,2]
[344640113,1733656232630,-500.0,0.00022999,2]
[344640114,1733656232639,-500.0,0.00022999,2]
[344640115,1733656232648,-500.0,0.00022999,2]
[344640116,1733656232658,-500.0,0.00022999,2]
[344640117,1733656232667,-500.0,0.00022999,2]
[344640118,1733656232676,-500.0,0.00022999,2]
[344640119,1733656232686,-507.06460548,0.00022999,2]
[344640120,1733656232695,-506.83076657,0.00022999,2]
[344640121,1733656232704,-501.86240779,0.00022999,2]
[344640122,1733656232714,-618.38210637,0.00022999,2]
[344640123,1733656232727,-500.0,0.00022999,2]
[344640124,1733656232736,-500.0,0.00022999,2]
[344640125,1733656232745,-500.0,0.00022999,2]
[344640126,1733656232755,-500.0,0.00022999,2]
[344640127,1733656232764,-500.0,0.00022999,2]
[344640128,1733656232773,-627.90433981,0.00022999,2]
[344640129,1733656232783,-879.0,0.00023,2]
[344640130,1733656232794,-240994.98132849,0.00023,2]
[344640131,1733656232803,-1145.88772684,0.00023,2]
[344640132,1733656232812,-1724.512157,0.00023,2]
[344640133,1733656232821,-307036.05567282,0.00023,3]
[344640137,1733656237579,-159.82517911,0.00022973,2]
[344640138,1733656237589,-199.56040732,0.00022998,2]
[344640139,1733656237598,-539.67286543,0.00022998,2]
[344640140,1733656237607,-7748020.2539041,0.00023,3]
[344640141,1733656237633,-480.67123095,0.00023,3]
[344640142,1733656237688,-3344.79420031,0.00023,3]
[344640143,1733656237700,-7145.70607608,0.00023,3]
[344640144,1733656237851,-3004.60843179,0.00023,3]
[344640145,1733656237863,-4151.68749379,0.00023,3]
[344640163,1733656239886,-394.56644754,0.00022998,2]
[344640164,1733656239896,-2548.45673312,0.00023,3]
[344640170,1733656242767,-890.0,0.00023,2]
[344640172,1733656242776,-5536.40793814,0.00023,3]
[344640174,1733656242788,-6091.04679229,0.00023,3]
[344640175,1733656242801,-1186.33301112,0.00023,3]
[344640176,1733656242813,-10040.54981179,0.00023,3]
[344640177,1733656242824,-5887.9179568,0.00023,3]
[344640178,1733656242835,-3492.32565,0.00023,3]
[344640179,1733656242846,-3511.5,0.00023,3]
[344640180,1733656242857,-11616.38348601,0.00023,3]
[344640181,1733656242869,-6901.23779516,0.00023,3]
[344640182,1733656243009,-520.6853091,0.00023,3]
[344640183,1733656243020,-2521.61466941,0.00023,3]
[344640184,1733656243042,-1630.27186228,0.00023,3]
[344640185,1733656243346,-1637.73836945,0.00023,3]
[344640194,1733656245657,-803.0,0.00023,2]
[344640195,1733656245666,-2697.0,0.00023,3]
[344640196,1733656245678,-4833.79971318,0.00023,3]
[344640197,1733656245776,-1367.6193,0.00023,3]
[344640198,1733656245811,-1002.84007696,0.00023,3]
[344640199,1733656245944,-434.0177,0.00023,3]
[344640203,1733656549019,177.78375802,0.00018,30]
[344640218,1733656759027,7336.84104831,0.0002,120]
[344640232,1733657149350,-2081.8848557,0.00023,120]
[344640233,1733657149382,-2000.0,0.00023237,120]
[344640234,1733657149413,-180.449985,0.00023237,120]
[344640235,1733657149437,-200.0,0.00023237,120]
[344640263,1733657431871,-400.0,0.00016,2]
[344640264,1733657431882,-400.0,0.000165,2]
[344640265,1733657431892,-155.41,0.00016751,2]
[344640266,1733657431902,-591.26,0.000192,2]
[344640267,1733657431911,-51.51386658,0.00019699,2]
[344640268,1733657431927,-149.43828333,0.00019699,2]
[344640269,1733657431936,-17118.96572962,0.000198,2]
[344640270,1733657431946,-4300.0,0.0002,30]
[344640271,1733657431955,-150.0,0.00020506,2]
[344640272,1733657431966,-1500.0,0.00020606,2]
[344640273,1733657431975,-2009.42,0.00020715,2]
[344640274,1733657431985,-150.0,0.00020729,2]
[344640275,1733657431994,-1636.67052135,0.00020848,2]
[344640276,1733657432049,-887.80834405,0.00020848,2]
[344640277,1733657432204,-623.49309,0.00020848,2]
[344640278,1733657432215,-1187.8,0.00020848,2]
[344640279,1733657432227,-296.19853093,0.00020848,2]
[344640280,1733657432261,-19268.02951367,0.00020848,2]
[344640281,1733657432272,-300.0,0.00020893,2]